Cogmind - Beta 13 @@@ ROGUE MODE // 2024.05.16 @ 15:07:36 Player: jonasanoj Result: Destroyed by H-61 Shepherd with Heavy Assault Cannon Performance ------------- Evolutions (3) 1500 Regions Visited (7) 1400 Robots Destroyed (40) 200 Value Destroyed (1214) 1214 Prototype IDs (1) 20 Alien Tech Used (0) 0 Bonus (500) 500 TOTAL SCORE: 4834 Bonus ------- Entered DSFs 500 Cogmind --------- Core Integrity 0/700 Matter 228/300 Energy 100/100 System Corruption 0% Temperature Cool (0) Movement Core (100) Ox1 Location -7/DSF Parts ------- > --- POWER (2) -------- (None) > --- PROPULSION (3) --- (None) > --- UTILITY (5) ------ Small Storage Unit Melee Analysis Suite > --- WEAPON (3) ------- (None) > --- INVENTORY (8) ---- Weight Redist. System Advanced Beam Cannon Katana Peak State ------------ > --- POWER ------------ Light Nuclear Core Light Nuclear Core > --- PROPULSION ------- Gravmag System Gravmag System Gravmag System > --- UTILITY ---------- Improved Heat Sink Small Storage Unit Visual Processing Unit Melee Analysis Suite Improved Light Armor Plating > --- WEAPON ----------- Heavy Laser Advanced Beam Cannon Katana > --- INVENTORY -------- Aluminum Leg Aluminum Leg Weight Redist. System Pulse Rifle Advanced Beam Cannon Advanced Beam Cannon [Rating: 41] Favorites ----------- Power Light Nuclear Core Engine Ion Engine Power Core Light Nuclear Core Propulsion Improved Hover Unit Treads Light Treads Leg Aluminum Leg Hover Unit Improved Hover Unit Utility Small Storage Unit Device Heat Sink Storage Small Storage Unit Processor Visual Processing Unit Protection Improved Light Armor Plating Weapon Medium Laser Energy Gun Medium Laser Energy Cannon Advanced Beam Cannon Ballistic Gun High-powered Shotgun Ballistic Cannon Magnetic Acceleration Cannon Slashing Weapon Katana Build | -11 -10 -10 -10 -9 -8 -7 -7 ------- Run | Yrd Mat Min Exi Min Mat Fac DSF Slots Evolved 6 | . . . . . 4 2 . Power 1 | . . . . . . 1 . Propulsion 1 | . . . . . 1 . . Utility 3 | . . . . . 2 1 . Weapon 1 | . . . . . 1 . . Parts Attached 56 | 8 16 . . . 20 2 10 Power 6 | 1 2 . . . 2 1 . Engine 2 | 1 . . . . 1 . . Core 4 | . 2 . . . 1 1 . Reactor . | . . . . . . . . Propulsion 20 | 4 5 . . . 6 . 5 Treads 2 | 2 . . . . . . . Leg 9 | 2 2 . . . 3 . 2 Wheel . | . . . . . . . . Hover 9 | . 3 . . . 3 . 3 Flight . | . . . . . . . . Utility 8 | 1 1 . . . 5 1 . Device 4 | . 1 . . . 3 . . Storage 1 | 1 . . . . . . . Processor 2 | . . . . . 1 1 . Hackware . | . . . . . . . . Protection 1 | . . . . . 1 . . Artifact . | . . . . . . . . Weapon 22 | 2 8 . . . 7 . 5 Energy Gun 11 | . 8 . . . 2 . 1 Energy Cannon 4 | . . . . . 1 . 3 Ballistic Gun 5 | 2 . . . . 3 . . Ballistic Cannon 1 | . . . . . . . 1 Launcher . | . . . . . . . . Special Weapon . | . . . . . . . . Impact Weapon . | . . . . . . . . Slashing Weapon 1 | . . . . . 1 . . Piercing Weapon . | . . . . . . . . Special Melee Weapon . | . . . . . . . . Unidentified Prototypes 1 | . . . . . 1 . . Parts Lost 28 | . 3 . . . 7 . 18 Power 2 | . . . . . . . 2 Propulsion 11 | . 1 . . . 4 . 6 Utility 5 | . . . . . 2 . 3 Weapon 10 | . 2 . . . 1 . 7 Highest Loss Streak 17 | . 2 . . . 3 . 17 To Critical Strikes . | . . . . . . . . Average Slot Usage (%) 94 | . 97 100 100 100 91 100 67 Engine 1 | . 4 . . . . . . Core 10 | . 8 14 14 14 8 15 7 Leg 6 | . 9 . . . 9 23 7 Hover 19 | . 18 28 28 28 14 . 8 Device 12 | . 12 14 14 14 12 7 2 Storage 11 | . 14 14 14 14 9 7 7 Processor 3 | . . . . . 9 15 11 Energy Gun 19 | . 23 28 28 28 13 7 3 Energy Cannon 1 | . . . . . 3 7 5 Ballistic Gun 4 | . 4 . . . 8 . . Naked Turns . | . . . . . . . . Heaviest Build 29 | 14 16 15 15 15 24 29 29 Greatest Support 40 | 40 20 14 14 14 30 30 30 Greatest Overweight (x) 4 | . 2 1 1 1 2 . 4 Average Overweight (x) . | . . 1 1 1 . . . Largest Inventory Capacity 8 | 8 8 8 8 8 8 8 8 Average Capacity 7 | 7 8 8 8 8 8 8 8 Most Carried 8 | 4 8 8 8 8 8 7 6 Average Carried 7 | 3 7 8 8 8 7 6 5 Final Capacity 8 | 8 8 8 8 8 8 8 8 Final Carried 8 | 4 8 8 8 8 8 6 3 Class Distribution -------------------- 63% | Mutant 17% | Skirmisher 14% | Scavenger-Mutant 5% | Scavenger-Skirmisher Dominant Class ---------------- Mutant | -10/Materials Mutant | -10/Mines Mutant | -10/Exiles Mutant | -9/Mines Skirmisher | -8/Materials Skirmisher | -7/Factory Mutant | -7/DSF Resources | -11 -10 -10 -10 -9 -8 -7 -7 ----------- Run | Yrd Mat Min Exi Min Mat Fac DSF Matter Collected 833 | 194 366 . . . 273 . . Remotely . | . . . . . . . . Salvage Created 1490 | . 575 38 . . 759 . 118 Parts 84 | . 32 3 . . 42 . 7 Haulers Intercepted 1 | . . . . . 1 . . Recyclers Shooed 1 | . 1 . . . . . . Parts Field Recycled . | . . . . . . . . Retrieved Matter . | . . . . . . . . Parts Self-Destructed . | . . . . . . . . Prevented . | . . . . . . . . Kills | -11 -10 -10 -10 -9 -8 -7 -7 ------- Run | Yrd Mat Min Exi Min Mat Fac DSF Combat Hostiles Destroyed 35 | . 12 3 . . 16 . 4 Melee 1 | . . . . . 1 . . Guns 25 | . 10 1 . . 14 . . Cannons 4 | . . . . . . . 4 AOE 4 | . 2 2 . . . . . Classes Destroyed 8 | . 5 . . . 2 . 1 Tunneler 1 | . 1 . . . . . . Hauler 1 | . . . . . 1 . . Recycler 2 | . 1 . . . 1 . . Watcher 1 | . 1 . . . . . . Swarmer 12 | . 2 3 . . 4 . 3 Grunt 20 | . 10 . . . 10 . . Sentry 2 | . . . . . 2 . . Specialist 1 | . . . . . . . 1 Best Kill Streak 4 | . 2 3 . . 4 . 2 Combat Bots Only 4 | . 2 3 . . 4 . 2 Max Kills in Single Turn 2 | . 2 2 . . 2 . 1 Gunslinging 1 | . . . . . 1 . . Exploded 2 | . 2 2 . . . . . Melee 1 | . . . . . 1 . . Uniques/NPCs Destroyed . | . . . . . . . . Combat | -11 -10 -10 -10 -9 -8 -7 -7 -------- Run | Yrd Mat Min Exi Min Mat Fac DSF Hostile Shots Fired 289 | . 68 4 . 2 51 . 164 Missed 104 | . 19 1 . 1 18 . 65 Damage Taken 3456 | . 631 28 . 13 493 . 2291 Core 933 | . 82 9 . 13 117 . 712 Absorbed by Shields 52 | . . . . . . . 52 Regen/Repaired (Parts) 125 | . 45 . . . 80 . . Core Remaining (%) 78 | 100 . . . 58 78 . . Volleys Fired 90 | . 47 2 . . 29 . 12 Largest 3 | . 2 2 . . 3 . 3 Hottest 201 | . 115 90 . . 162 . 201 Shots Fired 196 | . 92 4 . . 78 . 22 Gun 177 | . 92 4 . . 76 . 5 Cannon 19 | . . . . . 2 . 17 Launcher . | . . . . . . . . Special . | . . . . . . . . Kinetic 80 | . 46 . . . 27 . 7 Thermal 88 | . 35 2 . . 39 . 12 Explosive . | . . . . . . . . Electromagnetic 28 | . 11 2 . . 12 . 3 Robot Hit Streak 11 | . 9 3 . . 11 . 5 Robot Miss Streak 5 | . 5 3 . . 4 . 2 Penetration Max . | . . . . . . . . Secondary Targets 5 | . 2 . . . 3 . . Max Gunslinging Chain 1 | . 1 . . . 1 . . Shots Hit Robots 122 | . 58 3 . . 49 . 12 Core Hits 70 | . 27 3 . . 33 . 7 Critical Kills 1 | . . . . . 1 . . Critical Parts Destroyed . | . . . . . . . . Critical Strikes 3 | . 2 . . . 1 . . Burn 2 | . 2 . . . . . . Meltdown 1 | . . . . . 1 . . Melee Attacks 1 | . . . . . 1 . . Impact . | . . . . . . . . Slashing 1 | . . . . . 1 . . Piercing . | . . . . . . . . Sneak Attacks . | . . . . . . . . Combat Hostiles . | . . . . . . . . Follow-up Attacks . | . . . . . . . . Damage Inflicted 2499 | 2 1089 100 . . 983 . 325 Guns 1724 | . 776 23 . . 831 . 94 Cannons 252 | . . . . . 21 . 231 Explosions 474 | . 303 77 . . 94 . . Melee 37 | . . . . . 37 . . Ramming 12 | 2 10 . . . . . . Kinetic 826 | . 423 . . . 322 . 81 Thermal 1412 | . 592 89 . . 534 . 197 Explosive . | . . . . . . . . Electromagnetic 212 | . 64 11 . . 90 . 47 Impact . | . . . . . . . . Slashing 37 | . . . . . 37 . . Piercing . | . . . . . . . . Highest Corruption . | . . . . . . . . Average Corruption . | . . . . . . . . Corruption Purged . | . . . . . . . . Corruption Blocked . | . . . . . . . . Overload Shots . | . . . . . . . . Overflow Damage 76 | . 76 . . . . . . Projectiles . | . . . . . . . . Explosions 76 | . 76 . . . . . . Melee . | . . . . . . . . Knockbacks 1 | . 1 . . . . . . Impact 1 | . 1 . . . . . . Kinetic . | . . . . . . . . Secondary . | . . . . . . . . Self-Inflicted Damage 84 | . 84 . . . . . . Shots 1 | . 1 . . . . . . Rammed . | . . . . . . . . Targets Rammed 4 | 1 3 . . . . . . Kicked 4 | 1 3 . . . . . . Crushed . | . . . . . . . . Highest Temperature 142 | . 114 24 . . 142 . 69 Average Temperature 40 | . 39 14 . . 46 . 22 Received Heat Transfer 528 | . 285 . . 9 234 . . Siege Activations . | . . . . . . . . Robots Corrupted . | . . . . . . . . Combat Hostiles . | . . . . . . . . Parts Fried . | . . . . . . . . Impact Corruptions . | . . . . . . . . Robots Melted 1 | . . . . . 1 . . Combat Hostiles 1 | . . . . . 1 . . Parts Melted 3 | . 2 . . . 1 . . Heat Transferred 2521 | . 1089 37 . . 1025 . 370 Parts Sabotaged . | . . . . . . . . Parts Stolen . | . . . . . . . . Parts Stripped . | . . . . . . . . Power Chain Reactions 2 | . . 1 . . 1 . . Alert | -11 -10 -10 -10 -9 -8 -7 -7 ------- Run | Yrd Mat Min Exi Min Mat Fac DSF Peak Influence 305 | . 302 106 . . 305 107 94 Initial 102 | . . 28 . . . 102 74 Average 129 | . 162 84 . . 150 102 64 Maximum Alert Level 1 | . 1 . . . 1 . . Low Security (%) 80 | 100 68 100 . 100 78 100 100 Level 1 19 | . 31 . . . 21 . . Level 2 . | . . . . . . . . Level 3 . | . . . . . . . . Level 4 . | . . . . . . . . Level 5 . | . . . . . . . . High Security . | . . . . . . . . Max Security . | . . . . . . . . Squads Dispatched 10 | . 4 . . . 3 1 2 Investigation 5 | . 2 . . . 2 1 . Extermination . | . . . . . . . . Reinforcement 5 | . 2 . . . 1 . 2 Assault . | . . . . . . . . Garrison . | . . . . . . . . Intercept . | . . . . . . . . Searches Triggered . | . . . . . . . . Construction Impeded . | . . . . . . . . Haulers Reinforced . | . . . . . . . . Active Scanning Responses . | . . . . . . . . Cargo Convoy Interrupts . | . . . . . . . . Stealth | -11 -10 -10 -10 -9 -8 -7 -7 --------- Run | Yrd Mat Min Exi Min Mat Fac DSF Distress Signals 1 | . . . . . 1 . . Communications Jammed . | . . . . . . . . Distress Signals . | . . . . . . . . Times Spotted 53 | . 17 3 . 3 18 . 12 Peak Tracking Total 8 | . 4 3 . . 4 . 8 Tactical Retreats 6 | . 3 . . . . . 3 Traps | -11 -10 -10 -10 -9 -8 -7 -7 ------- Run | Yrd Mat Min Exi Min Mat Fac DSF Traps Triggered 2 | . . . . . . . 2 Indirectly . | . . . . . . . . Trap Hack Attempts . | . . . . . . . . Triggered . | . . . . . . . . Disarmed . | . . . . . . . . Reprogrammed . | . . . . . . . . Reused . | . . . . . . . . Traps Extracted . | . . . . . . . . Installed . | . . . . . . . . Triggered . | . . . . . . . . Machines | -11 -10 -10 -10 -9 -8 -7 -7 ---------- Run | Yrd Mat Min Exi Min Mat Fac DSF Machines Disabled 1 | . 1 . . . . . . Max in Single Turn 1 | . 1 . . . . . . Machines Repaired . | . . . . . . . . Machines Dismantled . | . . . . . . . . Machines Sabotaged . | . . . . . . . . Overloaded Fab Kills . | . . . . . . . . Hacking | -11 -10 -10 -10 -9 -8 -7 -7 --------- Run | Yrd Mat Min Exi Min Mat Fac DSF Machines Accessed 11 | . 2 . 4 . 4 1 . Terminals 5 | . 1 . . . 3 1 . Fabricators . | . . . . . . . . Repair Stations 2 | . 1 . . . 1 . . Recycling Units . | . . . . . . . . Scanalyzers . | . . . . . . . . Garrison Access . | . . . . . . . . Total Hacks 31 | . 9 . 4 . 15 3 . Successful 19 | . 3 . 4 . 11 1 . Failed 12 | . 6 . . . 4 2 . Catastrophic 1 | . 1 . . . . . . Database Lockouts . | . . . . . . . . Manual . | . . . . . . . . Terminals 17 | . 4 . . . 10 3 . Fabricators . | . . . . . . . . Repair Stations 10 | . 5 . . . 5 . . Recycling Units . | . . . . . . . . Scanalyzers . | . . . . . . . . Garrison Access . | . . . . . . . . Terminal Hacks 13 | . 1 . 4 . 7 1 . Record 7 | . . . 4 . 3 . . Open DSF 1 | . . . . . . 1 . Emergency Access Points 1 | . . . . . 1 . . Alert Level 1 | . . . . . 1 . . Locate Traps 1 | . 1 . . . . . . Dispatch Records 1 | . . . . . 1 . . Investigation Status 1 | . . . . . 1 . . Fabricator Hacks . | . . . . . . . . Repair Station Hacks 6 | . 2 . . . 4 . . Scan Component 3 | . 1 . . . 2 . . Repair 3 | . 1 . . . 2 . . Recycling Unit Hacks . | . . . . . . . . Scanalyzer . | . . . . . . . . Garrison Access Hacks . | . . . . . . . . Unauthorized Hacks . | . . . . . . . . Terminals . | . . . . . . . . Fabricators . | . . . . . . . . Repair Stations . | . . . . . . . . Recycling Units . | . . . . . . . . Scanalyzers . | . . . . . . . . Garrison Access . | . . . . . . . . Data Cores Recovered . | . . . . . . . . Used . | . . . . . . . . Hacking Detections 7 | . 2 . . . 4 1 . Full Trace Events 6 | . 2 . . . 3 1 . Feedback Events . | . . . . . . . . Feedback Blocked . | . . . . . . . . Robot Schematics Acquired . | . . . . . . . . Robots Built . | . . . . . . . . Authchips . | . . . . . . . . Time . | . . . . . . . . Total Robot Build Rating . | . . . . . . . . Part Schematics Acquired . | . . . . . . . . Parts Built . | . . . . . . . . Authchips . | . . . . . . . . Time . | . . . . . . . . Total Part Build Rating . | . . . . . . . . Parts Repaired 3 | . 1 . . . 2 . . Time 108 | . 38 . . . 70 . . Parts Recycled . | . . . . . . . . Recycled Matter . | . . . . . . . . Retrieved Matter . | . . . . . . . . Retrieved Components . | . . . . . . . . Parts Scanalyzed . | . . . . . . . . Part Schematics Acquired . | . . . . . . . . Parts Damaged . | . . . . . . . . Bothacking | -11 -10 -10 -10 -9 -8 -7 -7 ------------ Run | Yrd Mat Min Exi Min Mat Fac DSF Used RIF Installer . | . . . . . . . . Robots Hacked . | . . . . . . . . Non-combat . | . . . . . . . . Combat . | . . . . . . . . Robot Hacks Applied . | . . . . . . . . Relay Couplers Released . | . . . . . . . . Fabnet Peak Effective % . | . . . . . . . . Robots Rewired . | . . . . . . . . Allies Hacked . | . . . . . . . . Hacks Repelled . | . . . . . . . . Allies | -11 -10 -10 -10 -9 -8 -7 -7 -------- Run | Yrd Mat Min Exi Min Mat Fac DSF Total Allies . | . . . . . . . . Largest Group . | . . . . . . . . Highest-Rated Group . | . . . . . . . . Highest-Rated Ally . | . . . . . . . . Total Orders . | . . . . . . . . Ally Attacks . | . . . . . . . . Total Damage . | . . . . . . . . Kills . | . . . . . . . . Allies Corrupted . | . . . . . . . . Allies Melted . | . . . . . . . . Intel | -11 -10 -10 -10 -9 -8 -7 -7 ------- Run | Yrd Mat Min Exi Min Mat Fac DSF Robot Analysis Total . | . . . . . . . . Derelict Logs Recovered 2 | . . 1 . 1 . . . Drone Launches . | . . . . . . . . Drone Recoveries . | . . . . . . . . Exploration | -11 -10 -10 -10 -9 -8 -7 -7 ------------- Run | Yrd Mat Min Exi Min Mat Fac DSF Turns Passed 2422 | 139 803 192 369 27 705 14 173 Spaces Moved 1857 | 103 600 161 319 24 529 11 110 Core 22 | 2 . . . . . . 20 Treads 4 | 4 . . . . . . . Legs 474 | 97 134 . . . 186 11 46 Wheels . | . . . . . . . . Hover 1357 | . 466 161 319 24 343 . 44 Flight . | . . . . . . . . Fastest Speed 50 | 50 56 116 116 116 52 120 52 Average Speed 103 | 120 95 116 116 116 96 120 106 Slowest Speed 260 | 160 180 116 116 116 260 120 260 Overloaded Moves . | . . . . . . . . Propulsion Burnouts . | . . . . . . . . Robots Hopped . | . . . . . . . . Cave-ins Triggered . | . . . . . . . . Exploration Rate (%) 39 | 5 59 29 64 9 24 . 86 Regions Visited 7 Branch Regions 3 Pre-discovered Areas 1 | . . 1 . . . . . Known Exits Taken 1 | . . . . . . 1 . Unknown Exits Taken 6 | 1 1 1 1 1 1 . . Scrap Searched . | . . . . . . . . Spaces Dug . | . . . . . . . . Terrain Destroyed 56 | . 44 8 . . 3 . 1 Melee . | . . . . . . . . Projectile 1 | . . . . . . . 1 AOE 55 | . 44 8 . . 3 . . Terrain Rammed . | . . . . . . . . Walls Destroyed . | . . . . . . . . Machines Disabled . | . . . . . . . . Actions | -11 -10 -10 -10 -9 -8 -7 -7 --------- Run | Yrd Mat Min Exi Min Mat Fac DSF Total 2177 | 115 743 162 318 23 663 12 141 Wait 97 | . 46 . . . 51 . . Move 1850 | 102 599 160 318 23 528 10 110 Hop . | . . . . . . . . Pick Up 36 | 2 16 . . . 18 . . Fast Attach 28 | 8 4 . . . 10 . 6 Attach 13 | . 3 . . . 5 2 3 Detach 2 | 2 . . . . . . . Swap 15 | . 9 . . . 5 . 1 Drop 34 | . 16 . . . 16 . 2 Fire 90 | . 47 2 . . 29 . 12 Melee 1 | . . . . . 1 . . Ram . | . . . . . . . . Kick 4 | 1 3 . . . . . . Crush . | . . . . . . . . Escape Stasis 7 | . . . . . . . 7 Rewire . | . . . . . . . . Trap . | . . . . . . . . Miscellaneous . | . . . . . . . . Route ------- -11/Scrapyard -10/Materials (discovered 3 exits: [*Mat x2] / [*Min]) -10/Mines -10/Exiles (discovered 2 exits: [*Min x2]) -9/Mines -8/Materials (discovered 2 exits: *Fac / Sto) -7/Factory -7/DSF (discovered 1 exit: [*Fac]) History --------- Turn | Location | Event 10 | -11/Scrapyard | Discovered new exit (range 16) 140 | -11/Scrapyard | Entered Materials 486 | -10/Materials | Discovered new exit (range 8) 559 | -10/Materials | Repaired Lgt. Nuclear Core 711 | -10/Materials | Build established: Mutant 831 | -10/Materials | Discovered new exit (range 16) 905 | -10/Materials | Discovered new exit (range 16) 943 | -10/Materials | Entered Mines 989 | -10/Mines | Learned location of Mines (-9) 1127 | -10/Mines | Deemed a non-threat by the Exiles lab entrance 1128 | -10/Mines | Discovered new exit (range 5) 1135 | -10/Mines | Entered Exiles 1135 | -10/Exiles | Found Exiles lab abandoned 1163 | -10/Exiles | Discovered new exit (range 15) 1488 | -10/Exiles | Discovered new exit (range 11) 1504 | -10/Exiles | Entered Mines 1513 | -9/Mines | Learned 2 Materials zone layouts 1518 | -9/Mines | Discovered new exit (range 12) 1531 | -9/Mines | Entered Materials 1531 | -8/Materials | Evolved 4 slots: Propulsion x1, Utility x2, Weapon x1 1532 | -8/Materials | Identified exit to Storage 1655 | -8/Materials | Lost 3 parts (1n1u1w) 1816 | -8/Materials | Repaired Lgt. Nuclear Core 1855 | -8/Materials | Repaired Imp. Hover Unit 1886 | -8/Materials | Discovered new exit (range 17) 2236 | -8/Materials | Entered Factory 2236 | -7/Factory | Evolved 2 slots: Power x1, Utility x1 2249 | -7/Factory | Identified exit to DSF 2250 | -7/Factory | Entered DSF 2268 | -7/DSF | Discovered new exit (range 18) 2285 | -7/DSF | Additional patrols routed to DSF 2371 | -7/DSF | Core integrity fell below 50% 2403 | -7/DSF | Core integrity fell below 20% 2423 | -7/DSF | Destroyed by H-61 Shepherd with Heavy Assault Cannon Last Messages --------------- S-27 Virus unfolds itself. Imp. EM Pulse Cannon destroyed. Pulse Rifle destroyed. Acquired Magnetic Acceleration Cannon. Gravmag System destroyed. S-27 Virus destroyed. Gravmag System destroyed. Lgt. Nuclear Core destroyed. X-67 Chaingunner destroyed. Knocked back. Gravmag System destroyed. Adv. Beam Cannon destroyed. Knocked back. Aluminum Leg destroyed. S-27 Virus destroyed. Aluminum Leg destroyed. Magnetic Acceleration Cannon destroyed. Matter Repository disabled. Triggered Alarm Trap. An alarm sounds. Map ----- +----------------------------------------------------+ | | | | | ??????????????????????????????????? | | ??????????????????????????????????? | | ??????????????????????????????????? | | ???????????????????????#??????????? | | ???????????????????????""?????????? | | ??????????????????????#"#?????????? | | ????##########???????##"####??????? | | ????#" #########"""""#??????? | | ?????# #!!!#!!##"%"""#??????? | | ?????# =% % ""##"????? | | ?????# % """""????? | | ?????### ### # ##g ""##?????? | | ?????### %### # ###x ###??????? | | ?????# ########## ##???????? | | ?????# #??????#!! !#???????? | | ?????# #??????#!! !#???????? | | ?????##" ###??????### ##???????? | | ?????#]] % !!#??????#!! !#???????? | | ?????#]] !!#??????#!! !#???????? | | ?????#] !!#??????#!! !#???????? | | ########* *###??????### ###??????? | | =#!!!###%=%"#????#????# !!#??????? | | =#!!!## !!= ##!!!#]]]## !!#??????? | | % a % @ #??????? | | H #??????? | | % #??????? | | [#!!!## a##!!!#!!!## #??????? | | [#!!!### ###!!!#!!!## #??????? | | ######?# ###?#####??# ###??????? | | ???????! [[?????????! !????????? | | ???????! [[#????????! !????????? | | ???????! [[#???????!! !????????? | | ???????# ###???????## #????????? | | ??????? !!#????????! !????????? | | ??????? !!#????????! !????????? | | ######? !!?????????# #????????? | | =# #?# ##?????????# ?????????? | | =# ### ###!!!#???? ?????????? | | "????????? | | <"????????? | | =#===#== ^ #!!!#!!##""??????????? | | ######== #???#????????????????? | | ?????####"####????????????????????? | | ?????????##???????????????????????? | | ??????????????????????????????????? | | ??????????????????????????????????? | | ??????????????????????????????????? | | ??????????????????????????????????? | +----------------------------------------------------+ Best States ------------- Heat Dissipation 64 Energy Generation 23 Energy Capacity 250 Matter Stores 300 Matter Capacity 300 Sight Range 18 Terrain Scan Density 10 Armor Coverage 150 Evasion (%) 55 Melee Accuracy 5 Recoil Reduction 2 Item Schematics ----------------- None Robot Schematics ------------------ None Fabricated ------------ Nothing Alien Tech Used ----------------- None Achievements -------------- None Challenges ------------ None Game ------ Seed ScrapSupersonicNanovents Manual? 0 Play Time 00:27:23 Cumulative 7.4 hours Start 2024.05.15 @ 21:19:07 End 2024.05.16 @ 15:07:36 Sessions 3 Manual Loads 0 Difficulty Rogue Special Mode None Game No. 8 Rogue 3 Adventurer 5 Explorer 0 Win Type - Total 0 Types 0/0/0/0/0/0/0/0/0 Lore% 16 Gallery% 17 Achievement% 15 Wizard Run 0 Options --------- Layout 1 ASCII 0 Keyboard 0 Movement Arrows Keybinds 0 Fullscreen 1 Font 24/Tamsyn Map View 50x35 Zoom Use 0% Tactical HUD 0 Map Filters NONE Filters NONE Steam 1 RUN: a75944ca-ca31-477e-ac58-4b6f0a4f60f2